Workbook

Sheet 专硕
A1: 非常规2021硕士招生复试成绩公示-采收率所-化学工程与技术专业（学硕）
A2: 序号 | B2: 考生编号 | C2: 考生姓名 | D2: 初试成绩 | E2: 外语成绩 | F2: 专业面试成绩 | G2: 复试成绩 | H2: 总成绩 | I2: 是否拟录取 | J2: 拟录取专业 | K2: 备注
A3: 1 | B3: 105611200005875 | C3: 龚喜刚 | D3: 376 | E3: 86.2 | F3: 89.6 | G3: 88.6 | H3: 79.2 | I3: 是 | J3: 化学工程与技术
A4: 2 | B4: 100101200004441 | C4: 季陈珊 | D4: 337 | E4: 未参加复试 | F4: 未参加复试 | G4: 未参加复试 | H4: 未参加复试 | I4: 未参加复试 | J4: 未参加复试 | K4: 未参加复试
A5: 非常规2021硕士招生复试成绩公示-采收率所-石油与天然气工程专业（学硕）
A6: 序号 | B6: 考生编号 | C6: 考生姓名 | D6: 初试成绩 | E6: 外语成绩 | F6: 专业面试成绩 | G6: 复试成绩 | H6: 总成绩 | I6: 是否拟录取 | J6: 拟录取专业 | K6: 备注
A7: 1 | B7: 104251540007541 | C7: 张亚楠 | D7: 286.0 | E7: 86.6 | F7: 88.7 | G7: =E7*0.3+F7*0.7 -> 88.1 | H7: =D7/5*0.7+G7*0.3 -> 66.5 | I7: 是 | J7: 石油与天然气工程
A8: 2 | B8: 114141114222406 | C8: 张彦 | D8: 313.0 | E8: 83.3 | F8: 78.1 | G8: =E8*0.3+F8*0.7 -> 79.7 | H8: =D8/5*0.7+G8*0.3 -> 67.7 | I8: 否 | K8: 已被别单位录取
A9: 3 | B9: 114141137133591 | C9: 季天罡 | D9: 329.0 | E9: 78.9 | F9: 76.7 | G9: =E9*0.3+F9*0.7 -> 77.4 | H9: =D9/5*0.7+G9*0.3 -> 69.3 | I9: 否 | K9: 已被别单位录取
A10: 4 | B10: 114141151104289 | C10: 余波 | D10: 302.0 | E10: 0.0 | F10: 0.0 | G10: 0.0 | H10: 42.3 | I10: 否 | K10: 未参加复试
A11: 5 | B11: 102511000000747 | C11: 石雷莲 | D11: 280.0 | E11: 0.0 | F11: 0.0 | G11: 0.0 | H11: 39.2 | I11: 否 | K11: 未参加复试
A12: 非常规2021硕士招生复试结果公示-采收率所-资源与环境-石油与天然气工程（专硕）
A13: 序号 | B13: 考生编号 | C13: 姓名 | D13: 复试英语成绩 | E13: 复试专业成绩 | F13: 复试成绩 | G13: 初试成绩 | H13: 总成绩 | I13: 是否拟录取 | J13: 拟录取专业 | K13: 备注
A14: 1 | B14: 104251540001669 | C14: 王玮 | D14: 85.7 | E14: 90.3 | F14: =D14*0.3+E14*0.7 -> 88.9 | G14: 310 | H14: =G14/5*0.7+F14*0.3 -> 70.1 | I14: 是 | J14: 资源与环境（石油与天然气工程）
A15: 2 | B15: 104251540001682 | C15: 马玉山 | D15: 85.6 | E15: 85.6 | F15: =D15*0.3+E15*0.7 -> 85.6 | G15: 282 | H15: 65.2 | I15: 是 | J15: 资源与环境（石油与天然气工程）
A16: 3 | B16: 104251540007295 | C16: 岳慧 | D16: 82.0 | E16: 87.7 | F16: 86.0 | G16: 288 | H16: 66.1 | I16: 是 | J16: 资源与环境（石油与天然气工程）
A17: 4 | B17: 104231370810815 | C17: 于小雪 | D17: 86.3 | E17: 83.7 | F17: 84.5 | G17: 314 | H17: 69.3 | I17: 是 | J17: 资源与环境（石油与天然气工程）
A18: 5 | B18: 114141112181828 | C18: 郝易 | D18: 87.0 | E18: 87.9 | F18: 87.6 | G18: 314 | H18: 70.2 | I18: 是 | J18: 资源与环境（石油与天然气工程）
A19: 6 | B19: 106101085610039 | C19: 高睿 | D19: 86.4 | E19: 83.6 | F19: 84.4 | G19: 311 | H19: 68.9 | I19: 是 | J19: 资源与环境（石油与天然气工程）
A20: 7 | B20: 114141137093563 | C20: 吕政杭 | D20: 87.3 | E20: 87.4 | F20: =D20*0.3+E20*0.7 -> 87.4 | G20: 305 | H20: 68.9 | I20: 是 | J20: 资源与环境（石油与天然气工程）
A21: 8 | B21: 103351000920013 | C21: 洪诗平 | D21: 85.0 | E21: 83.9 | F21: =D21*0.3+E21*0.7 -> 84.2 | G21: 298 | H21: 67.0 | I21: 是 | J21: 资源与环境（石油与天然气工程）
A22: 9 | B22: 102851211526093 | C22: 常生亮 | D22: 83.6 | E22: 83.6 | F22: =D22*0.3+E22*0.7 -> 83.6 | G22: 319 | H22: 69.7 | I22: 是 | J22: 资源与环境（石油与天然气工程）
A23: 10 | B23: 100101200003182 | C23: 赵慧敏 | D23: 85.7 | E23: 83.7 | F23: =D23*0.3+E23*0.7 -> 84.3 | G23: 304 | H23: 67.9 | I23: 是 | J23: 资源与环境（石油与天然气工程）
A24: 11 | B24: 102511000012564 | C24: 张立胜 | D24: 80.4 | E24: 83.0 | F24: =D24*0.3+E24*0.7 -> 82.2 | G24: 334 | H24: =G24/5*0.7+F24*0.3 -> 71.4 | I24: 否 | K24: 自愿放弃
A25: 12 | B25: 114141151104281 | C25: 陈江萍 | D25: 0.0 | E25: 0.0 | F25: =D25*0.3+E25*0.7 -> 0.0 | G25: 298 | H25: =G25/5*0.7+F25*0.3 -> 41.7 | I25: 否 | K25: 未参加复试
A26: 13 | B26: 102511000000747 | C26: 石雷莲 | D26: 0.0 | E26: 0.0 | F26: 0.0 | G26: 280 | H26: 39.2 | I26: 否 | K26: 未参加复试
A27: 14 | B27: 104251540001687 | C27: 郭鹏飞 | D27: 0.0 | E27: 0.0 | F27: =D27*0.3+E27*0.7 -> 0.0 | G27: 289 | H27: =G27/5*0.7+F27*0.3 -> 40.5 | I27: 否 | K27: 未参加复试
A28: 15 | B28: 114141161444646 | C28: 赵渊 | D28: 0.0 | E28: 0.0 | F28: 0.0 | G28: 313 | H28: =G28/5*0.7+F28*0.3 -> 43.8 | I28: 否 | K28: 未参加复试
A29: 16 | B29: 114141161124590 | C29: 杨汉华 | D29: 0.0 | E29: 0.0 | F29: =D29*0.3+E29*0.7 -> 0.0 | G29: 298 | H29: 41.7 | I29: 否 | K29: 未参加复试
A30: 17 | B30: 144301030000044 | C30: 高烁斌 | D30: 0.0 | E30: 0.0 | F30: 0.0 | G30: 331 | H30: 46.3 | I30: 否 | K30: 未参加复试
A31: 18 | B31: 114141123102825 | C31: 吴岳峰 | D31: 0.0 | E31: 0.0 | F31: =D31*0.3+E31*0.7 -> 0.0 | G31: 321 | H31: 44.9 | I31: 否 | K31: 未参加复试
A32: 19 | B32: 103861100403628 | C32: 单志伟 | D32: 0.0 | E32: 0.0 | F32: 0.0 | G32: 413 | H32: 57.8 | I32: 否 | K32: 未参加复试
A33: 20 | B33: 106131085600025 | C33: 林文静 | D33: 0.0 | E33: 0.0 | F33: =D33*0.3+E33*0.7 -> 0.0 | G33: 313 | H33: 43.8 | I33: 否 | K33: 未参加复试
A34: 21 | B34: 102861210307003 | C34: 贾凌锐 | D34: 0.0 | E34: 0.0 | F34: 0.0 | G34: 393 | H34: 55.0 | I34: 否 | K34: 未参加复试
